Cogmind - Beta 16 @@@ ROGUE MODE // 2025.11.14 @ 15:32:51 Player: Stump Result: Self-destructed Performance ------------- Evolutions (1) 500 Regions Visited (2) 400 Robots Destroyed (47) 235 Value Destroyed (1059) 1059 Prototype IDs (4) 80 Alien Tech Used (0) 0 Bonus (0) 0 TOTAL SCORE: 2274 Bonus ------- None Cogmind --------- Core Integrity 38/400 Matter 300/300 Energy 240/240 System Corruption 0% Temperature Cool (6) Movement Rolling (80) Location -9/Materials Parts ------- > --- POWER (1) -------- Nuclear Core > --- PROPULSION (2) --- Wheel Wheel > --- UTILITY (4) ------ Medium Storage Unit Signal Interpreter > --- WEAPON (2) ------- Mace > --- INVENTORY (10) --- Aluminum Leg Aluminum Leg Wheel Improved Heat Sink High-capacity Matter Pod (200) Light Armor Plating Hacking Suite Missile Launcher Blade Saw Blade Saw Peak State ------------ > --- POWER ------------ Nuclear Core > --- PROPULSION ------- Wheel Wheel > --- UTILITY ---------- Medium Storage Unit Sensor Array Signal Interpreter Medium Armor Plating > --- WEAPON ----------- Blade Saw Blade Saw > --- INVENTORY -------- Light Ion Engine Improved Heat Sink High-capacity Matter Pod Signal Interpreter Medium Armor Plating Medium Armor Plating Hacking Suite Mace Blade Saw Blade Saw [Rating: 18] Favorites ----------- Power Nuclear Core Engine Light Ion Engine Power Core Nuclear Core Propulsion Improved Aluminum Leg Treads Light Treads Leg Improved Aluminum Leg Wheel Wheel Utility Medium Storage Unit Device Sensor Array Storage Medium Storage Unit Processor Signal Interpreter Protection Medium Armor Plating Weapon Blade Saw Energy Gun Particle Gun Energy Cannon Beam Cannon Ballistic Cannon Light Cannon Special Weapon Mining Laser Impact Weapon Mace Slashing Weapon Blade Saw Build | -11 -10 -9 ------- Run | Yrd Mat Mat Slots Evolved 2 | . . 2 Power . | . . . Propulsion . | . . . Utility 2 | . . 2 Weapon . | . . . Parts Attached 44 | 9 12 23 Power 5 | 1 1 3 Engine 2 | 1 1 . Core 3 | . . 3 Reactor . | . . . Propulsion 17 | 4 3 10 Treads 2 | . . 2 Leg 9 | 2 2 5 Wheel 6 | 2 1 3 Hover . | . . . Flight . | . . . Utility 10 | 2 2 6 Device 2 | 1 . 1 Storage 2 | 1 1 . Processor 2 | . 1 1 Hackware . | . . . Protection 4 | . . 4 Artifact . | . . . Weapon 12 | 2 6 4 Energy Gun 4 | 2 2 . Energy Cannon 1 | . 1 . Ballistic Gun . | . . . Ballistic Cannon 1 | . 1 . Launcher . | . . . Special Weapon 1 | . 1 . Impact Weapon 1 | . 1 . Slashing Weapon 4 | . . 4 Piercing Weapon . | . . . Special Melee Weapon . | . . . Unidentified Prototypes . | . . . Parts Lost 14 | . 3 11 Power 2 | . 1 1 Propulsion 4 | . . 4 Utility 5 | . 1 4 Weapon 3 | . 1 2 Highest Loss Streak 3 | . 1 3 To Critical Strikes . | . . . Average Backups 9 | 4 9 9 Power . | . . . Propulsion 1 | 3 2 1 Utility 4 | . 5 4 Weapon 2 | . . 3 Tool/Special . | . . . Unused Backups 9 | 1 3 5 Power . | . . . Propulsion 3 | . 2 1 Utility 4 | . 1 3 Weapon 2 | 1 . 1 Tool/Special . | . . . Average Slot Usage (%) 97 | . 99 94 Engine 7 | . 13 . Core 4 | . . 10 Treads 2 | . . 6 Leg 16 | . 24 5 Wheel 5 | . 3 7 Device 4 | . 1 9 Storage 12 | . 14 11 Processor 11 | . 12 11 Protection 4 | . . 9 Energy Gun 8 | . 15 . Energy Cannon 5 | . 9 . Impact Weapon 2 | . 2 1 Slashing Weapon 8 | . . 19 Peak Build Rating 18 | 7 11 18 Average Rating 12 | 5 9 16 On Entrance 5 | . 7 8 Avg Prop Armor Cover (%) 6 | . . 6 Naked Turns . | . . . Heaviest Build 31 | 15 21 31 Greatest Support 40 | 20 26 40 Greatest Overweight (x) 9 | . 1 9 Average Overweight (x) . | . . . Largest Inventory Capacity 10 | 8 10 10 Average Capacity 9 | 7 9 10 Most Carried 10 | 8 10 10 Average Carried 9 | 5 9 9 Final Capacity 10 | 8 10 10 Final Carried 10 | 7 10 10 Class Distribution -------------------- 100% | Mutant Dominant Class ---------------- Mutant | -10/Materials Mutant | -9/Materials Resources | -11 -10 -9 ----------- Run | Yrd Mat Mat Matter Collected 910 | 290 390 230 Remotely . | . . . Salvage Created 1615 | 146 626 843 Parts 85 | 11 30 44 Haulers Intercepted 1 | . 1 . Recyclers Shooed 1 | . . 1 Parts Field Recycled . | . . . Retrieved Matter . | . . . Parts Self-Destructed . | . . . Prevented . | . . . Parts Restored . | . . . Kills | -11 -10 -9 ------- Run | Yrd Mat Mat Combat Hostiles Destroyed 31 | . 16 15 Melee 13 | . 1 12 Guns 7 | . 7 . Cannons 2 | . 2 . AOE 2 | . 2 . Classes Destroyed 10 | 2 6 2 Worker 5 | . 1 4 Tunneler 2 | 2 . . Hauler 1 | . 1 . Recycler 3 | 1 . 2 Operator 1 | . 1 . Watcher 4 | . 2 2 Swarmer 9 | . 6 3 Grunt 18 | . 10 8 Duelist 1 | . . 1 Sentry 3 | . . 3 Best Kill Streak 5 | 2 5 4 Combat Bots Only 4 | . 3 4 Max Kills in Single Turn 2 | 1 2 1 Gunslinging . | . . . Exploded 1 | . 1 . Melee 1 | . 1 1 Uniques/NPCs Destroyed . | . . . Combat | -11 -10 -9 -------- Run | Yrd Mat Mat Hostile Shots Fired 227 | . 69 158 Missed 46 | . 13 33 Hits 181 | . 56 125 Melee 7 | . . 7 Projectile 174 | . 56 118 Critical Strikes 4 | . 1 3 Damage Taken 2375 | . 684 1691 Core 506 | . 144 362 Absorbed by Shields . | . . . Regen/Repaired (Parts) 50 | . 50 . Core Remaining (%) 71 | 100 42 . Volleys Fired 36 | 3 33 . Largest 2 | 2 2 . Hottest 125 | 90 125 . Shots Fired 69 | 6 63 . Gun 56 | 6 50 . Cannon 11 | . 11 . Launcher . | . . . Special 2 | . 2 . Kinetic . | . . . Thermal 46 | 3 43 . Explosive . | . . . Electromagnetic 23 | 3 20 . Robot Hit Streak 15 | 4 15 . Robot Miss Streak 4 | 1 4 . Penetration Max . | . . . Secondary Targets 2 | . 2 . Max Gunslinging Chain 1 | . 1 . Shots Hit Robots 138 | 5 55 78 Core Hits 50 | 4 19 27 Critical Kills . | . . . Critical Parts Destroyed 9 | . 5 4 Critical Strikes 26 | . 6 20 Burn 1 | . 1 . Smash 9 | . 5 4 Sever 16 | . . 16 Melee Attacks 131 | . 25 106 Impact 42 | . 25 17 Slashing 89 | . . 89 Piercing . | . . . Sneak Attacks 11 | . 1 10 Combat Hostiles . | . . . Follow-up Attacks 15 | . . 15 Damage Inflicted 2995 | 63 1235 1697 Guns 548 | 63 485 . Cannons 34 | . 34 . Explosions 136 | . 136 . Melee 2277 | . 580 1697 Ramming . | . . . Kinetic . | . . . Thermal 491 | 37 454 . Explosive . | . . . Electromagnetic 227 | 26 201 . Impact 1044 | . 580 464 Slashing 1233 | . . 1233 Piercing . | . . . Highest Corruption . | . . . Average Corruption . | . . . Corruption Purged . | . . . Corruption Blocked . | . . . Overload Shots . | . . . Overflow Damage 344 | . 181 163 Projectiles . | . . . Explosions 2 | . 2 . Melee 342 | . 179 163 Knockbacks 6 | . 2 4 Impact 5 | . 2 3 Kinetic . | . . . Secondary 1 | . . 1 Self-Inflicted Damage 34 | . 34 . Shots 1 | . 1 . Rammed . | . . . Targets Rammed . | . . . Kicked . | . . . Crushed . | . . . Highest Temperature 366 | 30 366 10 Average Temperature 114 | 18 122 10 Received Heat Transfer 996 | . 348 648 Effects 1 | . 1 . Interference 1 | . 1 . Siege Activations . | . . . Martial Activations . | . . . Shielding Activations . | . . . Robots Disrupted . | . . . Combat Hostiles . | . . . Robots Corrupted 8 | . 5 3 Combat Hostiles 7 | . 4 3 Parts Fried 8 | . 5 3 Impact Corruptions 17 | . 11 6 Robots Melted . | . . . Combat Hostiles . | . . . Parts Melted 2 | . 2 . Heat Transferred 1236 | 111 1125 . Parts Sabotaged . | . . . Parts Stolen . | . . . Parts Stripped . | . . . Power Chain Reactions 2 | . 2 . Alert | -11 -10 -9 ------- Run | Yrd Mat Mat Maximum Alert Level 1 | . . 1 Low Security (%) 95 | 100 100 90 Level 1 4 | . . 9 Level 2 . | . . . Level 3 . | . . . Level 4 . | . . . Level 5 . | . . . High Security . | . . . Max Security . | . . . Peak Influence 293 | 5 128 293 Initial 27 | . . 27 Average 59 | 1 51 76 Influence Increases 1192 | 15 526 651 Destroy 0b10 Robot/C 620 | . 320 300 Destroy 0b10 Robot/NC 80 | 15 25 40 Destroy Leader 150 | . 76 74 Successful Hack 29 | . 17 12 Disable Machine 45 | . 45 . Destroy Structure 13 | . 13 . Lose Combat Pursuer 255 | . 30 225 Influence Decreases 909 | 15 461 433 Entered New Map 38 | . . 38 Time Decay 751 | 15 441 295 Lost Part 120 | . 20 100 Squads Dispatched 5 | . 3 2 Investigation 1 | . . 1 Extermination . | . . . Reinforcement 4 | . 3 1 Assault . | . . . Garrison . | . . . Intercept . | . . . Searches Triggered . | . . . Construction Impeded . | . . . Haulers Reinforced . | . . . Active Scanning Responses . | . . . Cargo Convoy Interrupts . | . . . Stealth | -11 -10 -9 --------- Run | Yrd Mat Mat Distress Signals 5 | . 4 1 Communications Jammed . | . . . Distress Signals . | . . . Times Spotted 70 | . 30 40 Peak Tracking Total 7 | . 4 7 Tactical Retreats 13 | . 2 11 Traps | -11 -10 -9 ------- Run | Yrd Mat Mat Traps Triggered 1 | . . 1 Indirectly . | . . . Trap Hack Attempts . | . . . Triggered . | . . . Disarmed . | . . . Reprogrammed . | . . . Reused . | . . . Traps Extracted . | . . . Installed . | . . . Triggered . | . . . Machines | -11 -10 -9 ---------- Run | Yrd Mat Mat Machines Disabled 3 | . 3 . Max in Single Turn 1 | . 1 . Machines Repaired . | . . . Machines Dismantled . | . . . Machines Sabotaged . | . . . Overloaded Fab Kills . | . . . Hacking | -11 -10 -9 --------- Run | Yrd Mat Mat Machines Accessed 10 | . 7 3 Terminals 6 | . 5 1 Fabricators . | . . . Repair Stations 2 | . 1 1 Recycling Units 2 | . 1 1 Scanalyzers . | . . . Garrison Access . | . . . Total Hacks 30 | . 23 7 Successful 15 | . 13 2 Failed 15 | . 10 5 Catastrophic . | . . . Database Lockouts . | . . . Manual 9 | . 5 4 Terminals 21 | . 18 3 Fabricators . | . . . Repair Stations 7 | . 4 3 Recycling Units 2 | . 1 1 Scanalyzers . | . . . Garrison Access . | . . . Terminal Hacks 6 | . 6 . Prototype ID Bank 2 | . 2 . Locate Traps 1 | . 1 . Dispatch Records 1 | . 1 . Transport Status 1 | . 1 . Zone Layout 1 | . 1 . Fabricator Hacks . | . . . Repair Station Hacks 5 | . 4 1 Scan Component 3 | . 2 1 Repair 2 | . 2 . Recycling Unit Hacks 2 | . 1 1 Report Inventory 2 | . 1 1 Scanalyzer . | . . . Garrison Access Hacks . | . . . Unauthorized Hacks 2 | . 2 . Terminals 2 | . 2 . Botnet 2 | . 2 . Fabricators . | . . . Repair Stations . | . . . Recycling Units . | . . . Scanalyzers . | . . . Garrison Access . | . . . Data Cores Recovered . | . . . Used . | . . . Hacking Detections 9 | . 6 3 Full Trace Events 1 | . . 1 Feedback Events . | . . . Feedback Blocked . | . . . Robot Schematics Acquired . | . . . Robots Built . | . . . Authchips . | . . . Time . | . . . Total Robot Build Rating . | . . . Part Schematics Acquired . | . . . Parts Built . | . . . Authchips . | . . . Time . | . . . Total Part Build Rating . | . . . Part Studies Acquired . | . . . Parts Repaired 2 | . 2 . Time 85 | . 85 . Parts Recycled . | . . . Recycled Matter . | . . . Retrieved Matter . | . . . Retrieved Components . | . . . Parts Scanalyzed . | . . . Part Schematics Acquired . | . . . Parts Damaged . | . . . Bothacking | -11 -10 -9 ------------ Run | Yrd Mat Mat Used RIF Installer . | . . . Robots Hacked . | . . . Non-combat . | . . . Combat . | . . . Robot Hacks Applied . | . . . Relay Couplers Released . | . . . Fabnet Peak Effective % . | . . . Robots Rewired . | . . . Allies Hacked . | . . . Hacks Repelled . | . . . Allies | -11 -10 -9 -------- Run | Yrd Mat Mat Total Allies . | . . . Largest Group . | . . . Highest-Rated Group . | . . . Highest-Rated Ally . | . . . Total Orders . | . . . Ally Attacks . | . . . Total Damage . | . . . Kills . | . . . Allies Corrupted . | . . . Allies Melted . | . . . Intel | -11 -10 -9 ------- Run | Yrd Mat Mat Active Infowar (turns) 983 | 25 89 869 Sensors 869 | . . 869 Seismic 114 | 25 89 . Robot Analysis Total . | . . . Derelict Logs Recovered . | . . . Drone Launches . | . . . Drone Recoveries . | . . . Exploration | -11 -10 -9 ------------- Run | Yrd Mat Mat Turns Passed 2343 | 127 1242 974 Spaces Moved 1198 | 87 725 386 Core 3 | 1 . 2 Treads 122 | . . 122 Legs 729 | 59 588 82 Wheels 344 | 27 137 180 Hover . | . . . Flight . | . . . Fastest Speed 50 | 50 80 95 Average Speed 121 | 106 112 140 Slowest Speed 500 | 120 190 500 Overloaded Moves . | . . . Propulsion Burnouts . | . . . Robots Hopped . | . . . Potential Cave-ins . | . . . Cave-ins Triggered . | . . . Exploration Rate (%) 46 | 3 98 38 Regions Visited 2 Branch Regions . Pre-discovered Areas . | . . . Known Exits Taken 1 | . 1 . Unknown Exits Taken 1 | 1 . . Scrap Searched . | . . . Spaces Dug . | . . . Terrain Destroyed 7 | . 7 . Melee . | . . . Projectile . | . . . AOE 7 | . 7 . Terrain Rammed . | . . . Walls Destroyed . | . . . Machines Disabled . | . . . Actions | -11 -10 -9 --------- Run | Yrd Mat Mat Total 1788 | 112 1039 637 Wait 320 | . 204 116 Move 1196 | 86 724 386 Hop . | . . . Pick Up 44 | 11 17 16 Fast Attach 14 | 6 5 3 Attach 10 | 1 . 9 Detach . | . . . Swap 30 | 2 15 13 Drop 28 | 3 16 9 Fire 36 | 3 33 . Melee 110 | . 25 85 Ram . | . . . Kick . | . . . Crush . | . . . Escape Stasis . | . . . Rewire . | . . . Trap . | . . . Miscellaneous . | . . . Route ------- -11/Scrapyard -10/Materials (discovered 4 exits: *Mat x2 / *Min / [*Sub]) -9/Materials (discovered 1 exit: [*Mat]) History --------- Turn | Location | Event 15 | -11/Scrapyard | Discovered new exit (range 14) 128 | -11/Scrapyard | Entered Materials 323 | -10/Materials | Build established: Mutant 448 | -10/Materials | Discovered new exit (range 12) 564 | -10/Materials | Identified exit to Mines 622 | -10/Materials | Core integrity fell below 50% 775 | -10/Materials | Discovered new exit (range 14) 1028 | -10/Materials | Derelicts attacked the area 1095 | -10/Materials | Repaired Corrupted Imp. Heat Sink 1128 | -10/Materials | Repaired Mace 1150 | -10/Materials | Discovered new exit (range 16) 1167 | -10/Materials | Identified exit to Materials 1333 | -10/Materials | Discovered exit to Materials (range 11) 1370 | -10/Materials | Entered another Materials area 1370 | -9/Materials | Evolved 2 slots: Utility x2 1854 | -9/Materials | Lost 3 parts (1p1n1u) 2083 | -9/Materials | Core integrity fell below 50% 2183 | -9/Materials | Discovered new exit (range 13) 2202 | -9/Materials | Core integrity fell below 20% 2344 | -9/Materials | Self-destructed Last Messages --------------- 02262_ Acquired Lgt. Armor Plating. 02264_ Acquired Blade Saw. 02274_ Sneak attack on K-01 Serf. 02274_ K-01 Serf destroyed. 02278_ R-06 Scavenger collects Wheel. 02280_ Sneak attack on R-06 Scavenger. 02280_ R-06 Scavenger destroyed. 02281_ K-01 Serf collects debris. 02283_ Acquired 10 matter. 02283_ R-06 Scavenger collects Sml. Storage Unit. 02285_ Acquired Wheel. 02285_ R-06 Scavenger collects Com. Wheel. 02285_ K-01 Serf collects debris. 02287_ R-06 Scavenger collects Tractor Beam. 02288_ K-01 Serf collects debris. 02289_ R-06 Scavenger collects Lgt. Ion Engine. 02290_ Acquired 10 matter. 02291_ R-06 Scavenger collects Com. Wheel. 02291_ K-01 Serf collects debris. 02344_ Blade Saw destroyed. Map ----- +----------------------------------------------------+ | ????# # """" #???????????????????????????????? | | ????# # """" #???????????????????????????????? | | ????# # #???????????????????????????????? | | ????# ####+#####???????????????????????????????? | | ##### %#### ###?????????????????????????????????? | | ############??????????????????????? | | % *=%+% #??????????????????????? | | """ %% #####"" #??????????????????????? | | "Y" ###+####???#"T #??????????????????????? | | # #???#"" #??????????????????????? | | # """ #???# #??????????????????????? | | # """ #???# #??????????????????????? | | """ % #[ """ #???####k######## #????????? | | """ # #??????# #????????? | | """ # #??????# o######+???????????????? | | ########??????# #?????????????????????? | | #?????????????# #?????????????????????? | | """ #?????????????# #?????????????????????? | | """ #?????????????# #?????????????????????? | | """ #?????????????# #?????????????????????? | | #?????????????# #?????????????????????? | | #?###?????????# #?????????????????????? | | ! ###[#######???# #?????????????????????? | | #[*=% #???# #?????????????????????? | | []] # #???# l####??????????????????? | | [] # = #???# @ #??????????????????? | | [] # #???####Ygg #??????????????????? | | + = [[! #??????# g #??????????????????? | | # [[! #??????# ?????????????????? | | ####+## # [! #??????# ##+###????????????????? | | """ # # #??????# #?????????????????????? | | """ # ###########??????# #?????????????????????? | | """ # #????????????????# #?????????????????????? | | # #????????????????? #?????????????????????? | | [ / # #????????????????? #?????????????????????? | | # #????????????????? ??????????????????????? | | ####### #????????????????? ??????????????????????? | | ??????? ?????????????????? ??????????????????????? | | ??????? ?????????????????? ??????????????????????? | | ??????? ?????????????????? ??????????????????????? | | ??????? ?????????????????????????????????????????? | | ??????? ?????????????????????????????????????????? | | ??????? ?????????????????????????????????????????? | | ??????? ?????????????????????????????????????????? | | ?????????????????????????????????????????????????? | | ?????????????????????????????????????????????????? | | ?????????????????????????????????????????????????? | | ?????????????????????????????????????????????????? | | ?????????????????????????????????????????????????? | | ?????????????????????????????????????????????????? | +----------------------------------------------------+ Best States ------------- Heat Dissipation 28 Energy Generation 14 Energy Capacity 250 Matter Stores 300 Matter Capacity 300 Sight Range 16 Robot Scan Range 14 Terrain Scan Density 10 Armor Coverage 225 Evasion (%) 55 Recoil Reduction 2 Item Schematics ----------------- None Robot Schematics ------------------ None Fabricated ------------ Nothing Repaired ---------- Imp. Heat Sink | 57% | -10/Materials | Corrupted Mace | 72% | -10/Materials Studied --------- None Alien Tech Used ----------------- None Achievements -------------- Ghost 'Em True Hacker Challenges ------------ None Game ------ Seed TerrabombGyrokineticOptics Manual? 0 Play Time 00:36:00 Cumulative 28.6 hours Start 2025.11.14 @ 14:08:23 End 2025.11.14 @ 15:32:51 Sessions 1 Manual Loads 0 Difficulty Rogue Special Mode None Game No. 20 Rogue 20 Adventurer 0 Explorer 0 Win Type - Total 0 Types 0/0/0/0/0/0/0/0/0/0 Lore% 13 Gallery% 23 Achievement% 15 Wizard Run 0 Options --------- Layout 0 ASCII 0 Keyboard 0 Movement Mouse Keybinds 0 Fullscreen 1 Font 24/Smallcaps Map View 76x50 Zoom Use 0% Tactical HUD 1 Map Filters NONE Filters NONE Steam 1 RUN: 466eebce-0502-4802-85aa-50cfaa1fd8fc